bitfinex-derivatives/quotes_BTCF0:USTF0_20250629
["timestamp","ask_amount","ask_price","bid_price","bid_amount"]
[1751182509880,0.89018204,107420.0,107410.0,0.31194632]
[1751182510079,0.89018204,107420.0,107410.0,0.67274632]
[1751182515185,0.82928204,107420.0,107410.0,0.64054632]
[1751182526393,0.82928204,107420.0,107410.0,0.62534653]
[1751182526588,0.89418204,107420.0,107410.0,0.65754653]
[1751182534202,0.89418204,107420.0,107410.0,0.29674653]
[1751182534404,0.89418204,107420.0,107410.0,0.65754653]
[1751182534701,0.89418204,107420.0,107410.0,0.29674653]
[1751182534902,0.89418204,107420.0,107410.0,0.65754653]
[1751182543311,0.89418204,107420.0,107410.0,0.29674653]
[1751182543513,0.89418204,107420.0,107410.0,0.65754653]
[1751182552027,0.89418204,107420.0,107410.0,0.29674653]
[1751182552225,0.89418204,107420.0,107410.0,0.65754653]
[1751182553924,0.89418204,107420.0,107410.0,0.29674653]
[1751182554120,0.89418204,107420.0,107410.0,0.65754653]
[1751182555326,0.89418204,107420.0,107410.0,0.29674653]
[1751182555526,0.89418204,107420.0,107410.0,0.65754653]
[1751182556125,0.89418204,107420.0,107410.0,0.29674653]
[1751182556326,0.89418204,107420.0,107410.0,0.65754653]
[1751182557125,0.89418204,107420.0,107410.0,0.29674653]
[1751182557325,0.89418204,107420.0,107410.0,0.65754653]
[1751182560829,0.89418204,107420.0,107410.0,0.58307007]
[1751182561224,0.92698204,107420.0,107410.0,0.58307007]
[1751182561528,0.92698204,107420.0,107410.0,0.63893286]
[1751182569335,0.92698204,107420.0,107410.0,0.64984532]
[1751182570637,0.92698204,107420.0,107410.0,0.63893286]
[1751182571038,0.92698204,107420.0,107410.0,0.58307007]
[1751182579338,0.92698204,107420.0,107410.0,0.65754643]
[1751182589143,0.92698204,107420.0,107410.0,0.47140733]
[1751182589349,0.92698204,107420.0,107410.0,0.65754653]
[1751182589546,1.18460261,107420.0,107410.0,0.36473097]
[1751182589749,1.18460261,107420.0,107410.0,0.07840733]
[1751182590449,1.18460261,107420.0,107410.0,0.00393097]
[1751182591345,1.18460261,107420.0,107410.0,0.05978135]
[1751182592446,1.18460261,107420.0,107410.0,0.05878135]
[1751182593145,1.18460261,107420.0,107410.0,0.05678135]
[1751182594448,1.18460261,107420.0,107410.0,0.07086042]
[1751182599154,1.18460261,107420.0,107410.0,0.10807146]
[1751182609660,1.18460261,107420.0,107410.0,0.09399239]
[1751182610461,1.18460261,107420.0,107410.0,0.1081468]
[1751182612656,1.18460261,107420.0,107410.0,0.05229642]
[1751182614866,1.74464261,107420.0,107410.0,0.05229642]
[1751182617371,1.74464261,107420.0,107410.0,0.1081468]
[1751182620577,1.74464261,107420.0,107410.0,0.07093576]
[1751182627282,1.74464261,107420.0,107410.0,0.07094627]
[1751182628979,2.36306318,107420.0,107410.0,0.0523382]
[1751182629186,2.36306318,107420.0,107400.0,0.5821878]
[1751182629187,0.1861392,107410.0,107400.0,0.58220331]
[1751182629382,0.76218034,107410.0,107400.0,0.58220331]
[1751182639789,0.89006034,107410.0,107400.0,0.58220331]
[1751182641092,0.89006034,107410.0,107400.0,0.59637101]
[1751182642294,0.3748192,107410.0,107400.0,0.59637101]
[1751182642495,0.89006034,107410.0,107400.0,0.59637101]
[1751182652199,0.89006034,107410.0,107400.0,0.23557101]
[1751182652401,0.89006034,107410.0,107400.0,0.59637101]
[1751182654003,0.89006034,107410.0,107400.0,0.23557101]
[1751182654301,0.89006034,107410.0,107400.0,0.59637101]
[1751182664014,0.89006034,107410.0,107400.0,0.23557101]
[1751182664217,0.89006034,107410.0,107400.0,0.59637101]
[1751182669013,0.89006034,107410.0,107400.0,0.23557101]
[1751182669318,0.89006034,107410.0,107400.0,0.59637101]
[1751182672122,0.89006034,107410.0,107400.0,0.23557101]
[1751182672321,0.89006034,107410.0,107400.0,0.59637101]
[1751182673329,0.89006034,107410.0,107400.0,0.56467101]
[1751182676138,0.89006034,107410.0,107400.0,0.56467767]
[1751182680352,0.89006034,107410.0,107400.0,0.53417767]
[1751182681647,0.89006034,107410.0,107400.0,0.52000331]
[1751182685847,0.92256034,107410.0,107400.0,0.52000331]
[1751182692855,0.92256034,107410.0,107400.0,0.48940331]
[1751182695057,0.92256034,107410.0,107400.0,0.50357767]
[1751182695253,0.92256034,107410.0,107400.0,0.50358953]
[1751182695446,0.92256034,107410.0,107400.0,0.43085211]
[1751182706159,0.92256034,107410.0,107400.0,0.07005211]
[1751182706363,0.92256034,107410.0,107400.0,0.46145211]
[1751182708469,0.89006034,107410.0,107400.0,0.46145211]
[1751182737995,0.82926034,107410.0,107400.0,0.43085211]
[1751182739094,0.89056034,107410.0,107400.0,0.46355211]
[1751182747499,0.76268034,107410.0,107400.0,0.64970851]
[1751182747702,1.45108034,107410.0,107400.0,0.64970851]
[1751182747998,1.45108034,107410.0,107400.0,0.71310851]
[1751182748502,1.45108034,107410.0,107400.0,0.52695211]
[1751182763712,1.45108034,107410.0,107400.0,0.49675211]
[1751182767617,1.45108034,107410.0,107400.0,0.46355211]
[1751182771619,0.76268034,107410.0,107400.0,0.46355211]
[1751182771812,1.45120034,107410.0,107400.0,0.46355211]
[1751182773416,0.76268034,107410.0,107400.0,0.46355211]
[1751182773618,1.45128034,107410.0,107400.0,0.46355211]
[1751182779724,1.38998034,107410.0,107400.0,0.43085211]
[1751182781319,1.45418034,107410.0,107400.0,0.43085211]
[1751182783630,1.45418034,107410.0,107400.0,0.07005211]
[1751182783926,1.45418034,107410.0,107400.0,0.43085211]
[1751182790041,1.45418034,107410.0,107400.0,0.07005211]
[1751182790335,1.45418034,107410.0,107400.0,0.43085211]
[1751182794647,1.45418034,107410.0,107400.0,0.07005211]
[1751182794841,1.45418034,107410.0,107400.0,0.43085211]
[1751182798045,1.45418034,107410.0,107400.0,0.07005211]
[1751182798250,1.45418034,107410.0,107400.0,0.43085211]
[1751182799946,1.45418034,107410.0,107400.0,0.07005211]
[1751182800245,1.45418034,107410.0,107400.0,0.43085211]
[1751182803149,1.45418034,107410.0,107400.0,0.07005211]
[1751182803349,1.45418034,107410.0,107400.0,0.43085211]
[1751182804950,1.45418034,107410.0,107400.0,0.07005211]
[1751182805153,1.45418034,107410.0,107400.0,0.43085211]
[1751182808250,1.45418034,107410.0,107400.0,0.07005211]
[1751182808451,1.45418034,107410.0,107400.0,0.43085211]
[1751182817852,1.45418034,107410.0,107400.0,0.41223963]
[1751182824059,1.45418034,107410.0,107400.0,0.05143963]
[1751182824361,1.45418034,107410.0,107400.0,0.41223963]
[1751182826363,0.76558034,107410.0,107400.0,0.41223963]
[1751182826658,1.45398034,107410.0,107400.0,0.41223963]
[1751182827860,1.45398034,107410.0,107400.0,0.43085211]
[1751182833567,1.45398034,107410.0,107400.0,0.07005211]
[1751182833767,1.45398034,107410.0,107400.0,0.43085211]
[1751182837173,1.45398034,107410.0,107400.0,0.07005211]
[1751182837366,1.45398034,107410.0,107400.0,0.43085211]
[1751182840473,0.76558034,107410.0,107400.0,0.43085211]
[1751182840667,1.48550034,107410.0,107400.0,0.43085211]
[1751182854083,1.38970034,107410.0,107400.0,0.43085211]
[1751182860992,1.38970034,107410.0,107400.0,0.07005211]
[1751182861181,1.38970034,107410.0,107400.0,0.43085211]
[1751182861480,1.45400034,107410.0,107400.0,0.43085211]
[1751182866903,1.45400034,107410.0,107400.0,0.07005211]
[1751182867205,1.45400034,107410.0,107400.0,0.43085211]
[1751182868902,1.45392034,107410.0,107400.0,0.43085211]
[1751182870505,0.76568034,107410.0,107400.0,0.43085211]
[1751182870705,1.45392034,107410.0,107400.0,0.43085211]
[1751182870905,0.76568034,107410.0,107400.0,0.43085211]
[1751182871110,1.45392034,107410.0,107400.0,0.43085211]
[1751182873608,1.48572034,107410.0,107400.0,0.43085211]
[1751182875209,1.48572034,107410.0,107400.0,0.41666589]
[1751182886116,1.48568034,107410.0,107400.0,0.41666589]
[1751182890824,1.48568034,107410.0,107400.0,0.4308513]
[1751182895922,1.48568034,107410.0,107400.0,0.0700513]
[1751182896226,1.48568034,107410.0,107400.0,0.4308513]
[1751182915639,0.79748034,107410.0,107400.0,0.4308513]
[1751182915834,1.48564034,107410.0,107400.0,0.4308513]
[1751182937371,1.38954034,107410.0,107400.0,0.4308513]
[1751182938363,1.45314034,107410.0,107400.0,0.4308513]
[1751182938564,1.48584034,107410.0,107400.0,0.4308513]
[1751182954782,0.79768034,107410.0,107400.0,0.4308513]
[1751182954969,1.48588034,107410.0,107400.0,0.4308513]
[1751182956280,0.79768034,107410.0,107400.0,0.4308513]
[1751182956480,1.48584034,107410.0,107400.0,0.4308513]
[1751182975890,1.48580034,107410.0,107400.0,0.4308513]
[1751182985796,1.74342091,107410.0,107400.0,0.4681049]
[1751182988699,1.74342091,107410.0,107400.0,0.4308513]
[1751182991705,1.48580034,107410.0,107400.0,0.4308513]
[1751182996913,1.74342091,107410.0,107400.0,0.4308513]
[1751183003615,1.74342091,107410.0,107400.0,0.0700513]
[1751183003914,1.74342091,107410.0,107400.0,0.4308513]
[1751183005116,1.48580034,107410.0,107400.0,0.4308513]
[1751183007622,1.48580034,107410.0,107400.0,0.4616513]
[1751183014421,1.74342091,107410.0,107400.0,0.4616513]
[1751183016129,1.05530091,107410.0,107400.0,0.4616513]
[1751183016329,1.74358091,107410.0,107400.0,0.4616513]
[1751183029139,1.74358091,107410.0,107400.0,0.44746589]
[1751183034336,1.48596034,107410.0,107400.0,0.44746589]
[1751183035543,1.48596034,107410.0,107400.0,0.08666589]
[1751183035742,1.48596034,107410.0,107400.0,0.44746589]
[1751183035945,1.74358091,107410.0,107400.0,0.46161232]
[1751183037941,1.05530091,107410.0,107400.0,0.46161232]
[1751183038145,1.74342091,107410.0,107400.0,0.46161232]
[1751183043252,1.48580034,107410.0,107400.0,0.46161232]
[1751183052656,1.48580034,107410.0,107400.0,0.10081232]
[1751183052858,1.48580034,107410.0,107400.0,0.46161232]
[1751183054556,1.48580034,107410.0,107400.0,0.10081232]
[1751183054762,1.48580034,107410.0,107400.0,0.46161232]
[1751183060478,0.70138034,107410.0,107400.0,0.46161232]
[1751183060668,1.38950034,107410.0,107400.0,0.52571232]
[1751183060863,1.38950034,107410.0,107400.0,0.56296612]
[1751183063973,0.70138034,107410.0,107400.0,0.56296612]
[1751183064173,1.38950034,107410.0,107400.0,0.52571232]
[1751183065179,0.70138034,107410.0,107400.0,0.52571232]
[1751183065380,1.38950034,107410.0,107400.0,0.52571232]
[1751183083494,1.45170034,107410.0,107400.0,0.52571232]
[1751183086696,1.45170034,107410.0,107400.0,0.49421232]
[1751183088196,1.45170034,107410.0,107400.0,0.46161232]
[1751183100499,1.48170034,107410.0,107400.0,0.46161232]
[1751183122922,0.79358034,107410.0,107400.0,0.46161232]
[1751183123123,1.48158034,107410.0,107400.0,0.46161232]
[1751183139642,1.29544114,107410.0,107400.0,0.46161232]
[1751183139942,1.48158014,107410.0,107400.0,0.46161232]
[1751183140143,1.48158014,107410.0,107400.0,0.44746589]
[1751183152750,1.48158014,107410.0,107400.0,0.46158136]
[1751183162867,1.73920071,107410.0,107400.0,0.43078136]
[1751183163055,1.48158014,107410.0,107400.0,0.43078136]
[1751183166566,1.48158014,107410.0,107400.0,0.06998136]
[1751183166768,1.48158014,107410.0,107400.0,0.43078136]
[1751183167967,1.73920071,107410.0,107400.0,0.43078136]
[1751183168169,1.48158014,107410.0,107400.0,0.43078136]
[1751183171469,1.73920071,107410.0,107400.0,0.43078136]
[1751183172267,1.73920071,107410.0,107400.0,0.46803231]
[1751183173471,1.73920071,107410.0,107400.0,0.43078136]
[1751183174366,1.73920071,107410.0,107400.0,0.41666589]
[1751183174566,1.73920071,107410.0,107400.0,0.45391555]
[1751183175875,1.73920071,107410.0,107400.0,0.09311555]
[1751183178771,1.73920071,107410.0,107400.0,0.10726254]
[1751183179180,1.73920071,107410.0,107400.0,0.07001288]
[1751183182278,1.73920071,107410.0,107400.0,0.10726029]
[1751183188181,1.48158014,107410.0,107400.0,0.10726029]
[1751183190378,1.73920071,107410.0,107400.0,0.10726029]
[1751183192189,1.48158014,107410.0,107400.0,0.10726029]
[1751183192379,1.73920071,107410.0,107400.0,0.10726029]
[1751183200096,1.73920071,107410.0,107400.0,0.0931133]
[1751183200283,1.73920071,107410.0,107400.0,0.10730362]
[1751183201296,1.48158014,107410.0,107400.0,0.10730362]
[1751183205397,1.48158014,107410.0,107400.0,0.13730362]
[1751183209000,0.92146014,107410.0,107400.0,0.13730362]
[1751183209205,1.48158014,107410.0,107400.0,0.13730362]
[1751183212305,1.73920071,107410.0,107400.0,0.1231133]
[1751183214703,1.48158014,107410.0,107400.0,0.1231133]
[1751183215004,1.48158014,107410.0,107400.0,0.1373093]
[1751183215304,1.73920071,107410.0,107400.0,0.1373093]
[1751183219306,1.73920071,107410.0,107400.0,0.10006189]
[1751183222308,1.73920071,107410.0,107400.0,0.13731578]
[1751183223610,1.05120071,107410.0,107400.0,0.13731578]
[1751183223803,1.73916071,107410.0,107400.0,0.13731578]
[1751183230713,1.48154014,107410.0,107400.0,0.13731578]
[1751183231118,1.73916071,107410.0,107400.0,0.13731578]
[1751183231309,1.48154014,107410.0,107400.0,0.13731578]
[1751183237219,1.48154014,107410.0,107400.0,0.10006189]
[1751183238920,1.48154014,107410.0,107400.0,0.13731619]
[1751183239123,1.73916071,107410.0,107400.0,0.13731619]
[1751183239722,1.48154014,107410.0,107400.0,0.13731619]
[1751183241226,1.73916071,107410.0,107400.0,0.10731619]
[1751183242126,1.73916071,107410.0,107400.0,0.07006189]
[1751183250532,1.48154014,107410.0,107400.0,0.07006189]
[1751183254634,1.48154014,107410.0,107400.0,0.05586589]
[1751183267738,1.48154014,107410.0,107400.0,0.07005759]
[1751183271333,1.73916071,107410.0,107400.0,0.07005759]
[1751183272340,1.73916071,107410.0,107400.0,0.10731225]
[1751183272541,1.73916071,107410.0,107400.0,0.09312055]
[1751183272741,1.73916071,107410.0,107400.0,0.10731624]
[1751183278543,1.48154014,107410.0,107400.0,0.10731624]
[1751183282444,1.48154014,107410.0,107400.0,0.07006158]
[1751183294853,1.48154014,107410.0,107400.0,0.10731612]
[1751183300654,1.48154014,107410.0,107400.0,0.07006158]
[1751183301054,1.48154014,107410.0,107400.0,0.10731612]
[1751183301555,1.48154014,107410.0,107400.0,0.09312043]
[1751183302552,1.73916071,107410.0,107400.0,0.09312043]
[1751183306157,1.48154014,107410.0,107400.0,0.09312043]
[1751183308368,1.73916071,107410.0,107400.0,0.09312043]
[1751183314768,1.73916071,107410.0,107400.0,0.10731221]
[1751183330382,1.48154014,107410.0,107400.0,0.10731221]
[1751183330582,1.73916071,107410.0,107400.0,0.10731221]
[1751183339694,1.48154014,107410.0,107400.0,0.10731221]
[1751183341495,1.73916071,107410.0,107400.0,0.10731221]
[1751183344598,1.05120071,107410.0,107400.0,0.10731221]
[1751183344790,1.73912071,107410.0,107400.0,0.10731221]
[1751183346502,1.48150014,107410.0,107400.0,0.10731221]
[1751183348803,1.73912071,107410.0,107400.0,0.10731221]
[1751183349004,1.48150014,107410.0,107400.0,0.10731221]
[1751183349803,0.76358014,107410.0,107400.0,0.10731221]
[1751183350012,1.38930014,107410.0,107400.0,0.13891221]
[1751183350201,1.38930014,107410.0,107400.0,0.20251221]
[1751183350202,1.38938014,107410.0,107400.0,0.20251221]
[1751183350506,1.38938014,107410.0,107400.0,0.14664632]
[1751183350706,1.38938014,107410.0,107400.0,0.20251221]
[1751183350907,0.70138014,107410.0,107400.0,0.52605767]
[1751183351101,1.38938014,107410.0,107400.0,0.52605767]
[1751183351295,0.313979,107410.0,107400.0,0.52605767]
[1751183351498,1.38938014,107410.0,107400.0,0.52605767]
[1751183358109,1.38966014,107410.0,107400.0,0.52605767]
[1751183369917,1.45096014,107410.0,107400.0,0.52605767]
[1751183372123,0.76268014,107410.0,107400.0,0.52605767]
[1751183372423,1.45088014,107410.0,107400.0,0.52605767]
[1751183375628,1.45088014,107410.0,107400.0,0.52599194]
[1751183379227,1.45088014,107410.0,107400.0,0.49559194]
[1751183381529,1.45088014,107410.0,107400.0,0.46239194]
[1751183390642,0.76268014,107410.0,107400.0,0.46239194]
[1751183391230,1.45060014,107410.0,107400.0,0.46239194]
[1751183395436,0.76268014,107410.0,107400.0,0.46239194]
[1751183395741,1.45056014,107410.0,107400.0,0.46239194]
[1751183399836,1.48316014,107410.0,107400.0,0.46239194]
[1751183408041,0.79528014,107410.0,107400.0,0.46239194]
[1751183408251,1.48316014,107410.0,107400.0,0.46239194]
[1751183408547,0.967919,107410.0,107400.0,0.46239194]
[1751183408747,1.48316014,107410.0,107400.0,0.46239194]
[1751183410847,0.76268014,107410.0,107400.0,0.64854834]
[1751183411036,1.45096014,107410.0,107400.0,0.64854834]
[1751183412836,1.45096014,107410.0,107400.0,0.67964834]
[1751183413948,1.45096014,107410.0,107400.0,0.49349194]
[1751183416654,0.76268014,107410.0,107400.0,0.49349194]
[1751183416948,1.45104014,107410.0,107400.0,0.49349194]
[1751183417952,0.76268014,107410.0,107400.0,0.49349194]
[1751183418152,1.45100014,107410.0,107400.0,0.49349194]
[1751183420152,0.76268014,107410.0,107400.0,0.49349194]
[1751183420353,1.45116014,107410.0,107400.0,0.49349194]
[1751183420753,0.76268014,107410.0,107400.0,0.49349194]
[1751183420954,1.45116014,107410.0,107400.0,0.49349194]
[1751183421554,1.45116014,107410.0,107400.0,0.67964834]
[1751183421757,1.45116014,107410.0,107400.0,0.49349194]
[1751183429265,1.45116014,107410.0,107400.0,0.46239194]
[1751183431267,1.42106014,107410.0,107400.0,0.46239194]
[1751183431769,1.42106014,107410.0,107400.0,0.52549194]
[1751183431962,1.45256014,107410.0,107400.0,0.52549194]
[1751183435167,1.45256014,107410.0,107400.0,0.49289194]
[1751183437871,1.45256014,107410.0,107400.0,0.66492229]
[1751183438171,1.45256014,107410.0,107400.0,0.47876589]
[1751183438371,1.45256014,107410.0,107400.0,0.49288822]
[1751183445175,1.45256014,107410.0,107400.0,0.67904462]
[1751183445476,1.45256014,107410.0,107400.0,0.49288822]
[1751183447374,1.45256014,107410.0,107400.0,0.46238822]
[1751183460485,1.45256014,107410.0,107400.0,0.43078822]
[1751183460685,1.48376014,107410.0,107400.0,0.43078822]
[1751183464192,1.48376014,107410.0,107400.0,0.06998822]
[1751183464384,1.48376014,107410.0,107400.0,0.43078822]
[1751183464987,0.79528014,107410.0,107400.0,0.43078822]
[1751183465193,1.48336014,107410.0,107400.0,0.43078822]
[1751183474097,1.48336014,107410.0,107400.0,0.41666589]
[1751183476994,1.48336014,107410.0,107400.0,0.43078553]
[1751183477201,1.48336014,107410.0,107400.0,0.43078558]
[1751183500122,1.48336014,107410.0,107400.0,0.06998558]
[1751183500421,1.48336014,107410.0,107400.0,0.43078558]
[1751183507125,1.48336014,107410.0,107400.0,0.06998558]
[1751183507330,1.48336014,107410.0,107400.0,0.43078558]
[1751183518237,1.48336014,107410.0,107400.0,0.41666589]
[1751183518437,1.48336014,107410.0,107400.0,0.43078085]
[1751183525647,1.48336014,107410.0,107400.0,0.41666589]
[1751183528551,1.48336014,107410.0,107400.0,0.43078076]
[1751183529449,0.79528014,107410.0,107400.0,0.43078076]
[1751183529641,1.48316014,107410.0,107400.0,0.43078076]
[1751183530043,0.79528014,107410.0,107400.0,0.43078076]
[1751183530546,1.48316014,107410.0,107400.0,0.43078076]
[1751183533759,0.79528014,107410.0,107400.0,0.43078076]
[1751183534057,1.48316014,107410.0,107400.0,0.43078076]
[1751183535358,0.79528014,107410.0,107400.0,0.43078076]
[1751183535852,1.48316014,107410.0,107400.0,0.43078076]
[1751183536757,0.79528014,107410.0,107400.0,0.43078076]
[1751183537056,1.48316014,107410.0,107400.0,0.43078076]
[1751183541261,0.79528014,107410.0,107400.0,0.43078076]
[1751183541464,1.48316014,107410.0,107400.0,0.43078076]
[1751183542164,0.79528014,107410.0,107400.0,0.43078076]
[1751183542363,1.48316014,107410.0,107400.0,0.43078076]
[1751183545167,0.79528014,107410.0,107400.0,0.43078076]
[1751183545364,1.48316014,107410.0,107400.0,0.43078076]
[1751183545964,1.48316014,107410.0,107400.0,0.43078125]
[1751183561869,1.48316014,107410.0,107400.0,0.06998125]
[1751183562173,1.48316014,107410.0,107400.0,0.43078125]
[1751183566080,1.48316014,107410.0,107400.0,0.06998125]
[1751183566272,1.48316014,107410.0,107400.0,0.43078125]
[1751183572489,1.48316014,107410.0,107400.0,0.46128125]
[1751183573278,1.48316014,107410.0,107400.0,0.68469071]
[1751183573587,1.48316014,107410.0,107400.0,0.44266852]
[1751183576087,1.48316014,107410.0,107400.0,0.49853441]
[1751183576687,1.48316014,107410.0,107400.0,0.44266852]
[1751183577388,1.45196014,107410.0,107400.0,0.44266852]
[1751183577688,1.45192014,107410.0,107400.0,0.61470956]
[1751183577888,1.45192014,107410.0,107400.0,0.63332229]
[1751183578092,1.45192014,107410.0,107400.0,0.69712229]
[1751183579296,0.76408014,107410.0,107400.0,0.69712229]
[1751183579493,0.936639,107410.0,107400.0,0.69712229]
[1751183579694,1.45188014,107410.0,107400.0,0.69712229]
[1751183581287,0.76408014,107410.0,107400.0,0.69712229]
[1751183581492,1.45188014,107410.0,107400.0,0.69712229]
[1751183588198,0.248839,107410.0,107400.0,0.69712229]
[1751183588394,1.45184014,107410.0,107400.0,0.69712229]
[1751183588992,1.19421957,107410.0,107400.0,0.63332229]
[1751183589196,1.19421957,107410.0,107400.0,0.24202229]
[1751183589398,1.45184014,107410.0,107400.0,0.63482229]
[1751183589598,1.45184014,107410.0,107400.0,0.69842229]
[1751183591001,1.45184014,107410.0,107400.0,0.69840492]
[1751183591900,1.45184014,107410.0,107400.0,0.6425564]
[1751183592803,1.45184014,107410.0,107400.0,0.71703276]
[1751183593801,0.936599,107410.0,107400.0,0.71703276]
[1751183594002,1.45184014,107410.0,107400.0,0.71703276]
[1751183600114,1.45184014,107410.0,107400.0,0.35623276]
[1751183600306,1.45184014,107410.0,107400.0,0.71703276]
[1751183601711,1.45184014,107410.0,107400.0,0.68593276]
[1751183602217,0.76408014,107410.0,107400.0,0.68593276]
[1751183602513,1.45192014,107410.0,107400.0,0.68593276]
[1751183603114,0.76408014,107410.0,107400.0,0.68593276]
[1751183603315,1.45192014,107410.0,107400.0,0.68593276]
[1751183603611,0.76408014,107410.0,107400.0,0.68593276]
[1751183603809,1.45192014,107410.0,107400.0,0.68593276]
[1751183604015,1.32408014,107410.0,107400.0,0.68593276]
[1751183604210,1.45188014,107410.0,107400.0,0.68593276]
[1751183604420,0.76408014,107410.0,107400.0,0.68593276]
[1751183604714,1.45188014,107410.0,107400.0,0.68593276]
[1751183604917,0.76408014,107410.0,107400.0,0.68593276]
[1751183605117,1.45188014,107410.0,107400.0,0.68593276]
[1751183605717,0.76408014,107410.0,107400.0,0.68593276]
[1751183605918,1.45188014,107410.0,107400.0,0.68593276]
[1751183606923,0.76408014,107410.0,107400.0,0.68593276]
[1751183607116,1.45188014,107410.0,107400.0,0.68593276]
[1751183619030,1.45188014,107410.0,107400.0,0.6114564]
[1751183620829,1.45188014,107410.0,107400.0,0.5789564]
[1751183621027,1.45188014,107410.0,107400.0,0.6422564]
[1751183623132,1.45188014,107410.0,107400.0,0.6091564]
[1751183624026,1.45188014,107410.0,107400.0,0.9699564]
[1751183626634,1.45188014,107410.0,107400.0,1.04443276]
[1751183639043,1.45188014,107410.0,107400.0,1.01423276]
[1751183645946,1.45188014,107410.0,107400.0,0.29263276]
[1751183646141,1.45188014,107410.0,107400.0,1.01423276]
[1751183648149,1.45188014,107410.0,107400.0,0.65343276]
[1751183648346,1.45188014,107410.0,107400.0,1.01423276]
[1751183649361,1.45188014,107410.0,107400.0,0.9397564]
[1751183655257,1.45188014,107410.0,107400.0,0.2181564]
[1751183655460,1.45188014,107410.0,107400.0,0.9397564]
[1751183656260,1.45188014,107410.0,107400.0,1.01423276]
[1751183659357,1.45180014,107410.0,107400.0,1.01423276]
[1751183662160,1.45180014,107410.0,107400.0,0.29263276]
[1751183662360,1.45180014,107410.0,107400.0,1.01423276]
[1751183664063,1.45180014,107410.0,107400.0,0.29263276]
[1751183664360,1.45180014,107410.0,107400.0,1.01423276]
[1751183666873,0.936559,107410.0,107400.0,1.01423276]
[1751183667171,1.45180014,107410.0,107400.0,1.01423276]
[1751183674074,1.38910014,107410.0,107400.0,0.98223276]
[1751183674571,1.45170014,107410.0,107400.0,0.98223276]
[1751183688082,1.45170014,107410.0,107400.0,0.26063276]
[1751183688284,1.45170014,107410.0,107400.0,0.98223276]
[1751183694191,1.45170014,107410.0,107400.0,1.01243276]
[1751183706897,1.45170014,107410.0,107400.0,0.29083276]
[1751183707096,1.45170014,107410.0,107400.0,1.01243276]
[1751183709194,1.45170014,107410.0,107400.0,0.29083276]
[1751183709397,1.45170014,107410.0,107400.0,1.01243276]
[1751183711898,0.76398014,107410.0,107400.0,1.01243276]
[1751183712089,1.45158014,107410.0,107400.0,1.01243276]
[1751183712390,1.32382014,107410.0,107400.0,1.01243276]
[1751183712696,1.45158014,107410.0,107400.0,1.01243276]
[1751183713199,0.76398014,107410.0,107400.0,1.01243276]
[1751183713495,1.45154014,107410.0,107400.0,1.01243276]
[1751183713696,0.76398014,107410.0,107400.0,1.01243276]
[1751183713896,1.45154014,107410.0,107400.0,1.01243276]
[1751183714401,0.76398014,107410.0,107400.0,1.01243276]
[1751183714601,1.45154014,107410.0,107400.0,1.01243276]
[1751183715199,0.76398014,107410.0,107400.0,1.01243276]
[1751183715397,1.45154014,107410.0,107400.0,1.01243276]
[1751183715999,0.76398014,107410.0,107400.0,1.01243276]
[1751183716199,1.45154014,107410.0,107400.0,1.01243276]
[1751183716498,0.76398014,107410.0,107400.0,1.01243276]
[1751183716895,1.45154014,107410.0,107400.0,1.01243276]
[1751183717898,0.76398014,107410.0,107400.0,1.01243276]
[1751183718197,1.45154014,107410.0,107400.0,1.01243276]
[1751183718502,0.76398014,107410.0,107400.0,1.01243276]
[1751183718700,1.45154014,107410.0,107400.0,1.01243276]
[1751183719201,0.76398014,107410.0,107400.0,1.01243276]
[1751183719603,1.45154014,107410.0,107400.0,1.01243276]
[1751183720003,0.76398014,107410.0,107400.0,1.01243276]
[1751183720302,1.45154014,107410.0,107400.0,1.01243276]
[1751183720502,0.76398014,107410.0,107400.0,1.01243276]
[1751183721002,1.45154014,107410.0,107400.0,1.01243276]
[1751183721203,0.76398014,107410.0,107400.0,1.01243276]
[1751183721396,1.45154014,107410.0,107400.0,1.01243276]
[1751183721596,0.76398014,107410.0,107400.0,1.01243276]
[1751183721898,1.45154014,107410.0,107400.0,1.01243276]
[1751183722499,0.76398014,107410.0,107400.0,1.01243276]
[1751183722706,1.45154014,107410.0,107400.0,1.01243276]
[1751183723204,0.76398014,107410.0,107400.0,1.01243276]
[1751183723399,1.45154014,107410.0,107400.0,1.01243276]
[1751183724003,0.76398014,107410.0,107400.0,1.01243276]
[1751183724197,1.45154014,107410.0,107400.0,1.01243276]
[1751183724393,0.76398014,107410.0,107400.0,1.01243276]
[1751183724802,1.45154014,107410.0,107400.0,1.01243276]
[1751183725204,0.76398014,107410.0,107400.0,1.01243276]
[1751183725405,1.45154014,107410.0,107400.0,1.01243276]
[1751183726003,0.76398014,107410.0,107400.0,1.01243276]
[1751183726205,1.45154014,107410.0,107400.0,1.01243276]
[1751183726402,0.76398014,107410.0,107400.0,1.01243276]
[1751183726803,1.45154014,107410.0,107400.0,1.01243276]
[1751183727208,0.76398014,107410.0,107400.0,1.01243276]
[1751183727407,1.45150014,107410.0,107400.0,1.01243276]
[1751183728109,0.76398014,107410.0,107400.0,1.01243276]
[1751183728309,1.45150014,107410.0,107400.0,1.01243276]
[1751183729112,0.76398014,107410.0,107400.0,1.01243276]
[1751183729316,1.45150014,107410.0,107400.0,1.01243276]
[1751183730013,0.76398014,107410.0,107400.0,1.01243276]
[1751183730209,1.45150014,107410.0,107400.0,1.01243276]
[1751183730408,0.76398014,107410.0,107400.0,1.01243276]
[1751183730909,1.45150014,107410.0,107400.0,1.01243276]
[1751183731214,0.76398014,107410.0,107400.0,1.01243276]
[1751183731613,1.45150014,107410.0,107400.0,1.01243276]
[1751183732012,0.76398014,107410.0,107400.0,1.01243276]
[1751183732212,1.45150014,107410.0,107400.0,1.01243276]
[1751183732412,0.76398014,107410.0,107400.0,1.01243276]
[1751183732812,1.45150014,107410.0,107400.0,1.01243276]
[1751183733212,0.76398014,107410.0,107400.0,1.01243276]
[1751183733414,1.45150014,107410.0,107400.0,1.01243276]
[1751183734115,0.76398014,107410.0,107400.0,1.01243276]
[1751183734310,1.45150014,107410.0,107400.0,1.01243276]
[1751183734509,0.76398014,107410.0,107400.0,1.01243276]
[1751183734812,1.45150014,107410.0,107400.0,1.01243276]
[1751183735216,0.76398014,107410.0,107400.0,1.01243276]
[1751183735408,1.45150014,107410.0,107400.0,1.01243276]
[1751183736713,0.76398014,107410.0,107400.0,1.01243276]
[1751183736914,1.45146014,107410.0,107400.0,1.01243276]
[1751183737414,0.76398014,107410.0,107400.0,1.01243276]
[1751183737716,1.45146014,107410.0,107400.0,1.01243276]
[1751183740015,0.76398014,107410.0,107400.0,1.01243276]
[1751183740217,1.45146014,107410.0,107400.0,1.01243276]
[1751183741119,0.76398014,107410.0,107400.0,1.01243276]
[1751183741316,1.45146014,107410.0,107400.0,1.01243276]
[1751183742019,1.45146014,107410.0,107400.0,0.29083276]
[1751183742317,1.45146014,107410.0,107400.0,1.01243276]
[1751183743619,1.45146014,107410.0,107400.0,0.29083276]
[1751183743819,1.45146014,107410.0,107400.0,1.01243276]
[1751183744718,0.76398014,107410.0,107400.0,1.01243276]
[1751183745018,1.45146014,107410.0,107400.0,1.01243276]
[1751183745519,0.76398014,107410.0,107400.0,1.01243276]
[1751183745717,1.45146014,107410.0,107400.0,1.01243276]